[Event "WYCC 2018 O16"]
[Site "Halkidiki"]
[Date "2018.10.24"]
[Round "6"]
[White "Sargsyan, Tigran R."]
[Black "Teclaf, Pawel"]
[Result "1/2-1/2"]
[ECO "D71"]
[WhiteElo "2218"]
[BlackElo "2384"]
[Annotator "NA"]
[PlyCount "88"]
[EventDate "2018.10.20"]
[EventType "swiss"]
[EventCountry "GRE"]
[SourceTitle "playchess.com"]
[Source "ChessBase"]
[SourceQuality "1"]
[TimeControl "40/5400+30:1800+30"]

1. d4 {[%emt 0:00:00]} Nf6 {[%emt 0:00:00]} 2. c4 {[%emt 0:00:00]} g6 {[%emt 0:00:00]} 3. g3 {[%emt 0:00:16]} Bg7 {[%emt 0:01:54]} 4. Bg2 {[%emt 0:00:08]} d5 {[%emt 0:00:06]} 5. cxd5 {[%emt 0:00:08]} Nxd5 {[%emt 0:00:07]} 6. Nf3 {[%emt 0:00:17]} Nb6 {[%emt 0:00:36]} 7. Nc3 {[%emt 0:00:35]} O-O {[%emt 0:01:06]} 8. O-O {[%emt 0:00:17]} Nc6 {[%emt 0:01:11]} 9. e3 {[%emt 0:00:21]} Re8 {[%emt 0:00:49]} 10. h3 {[%emt 0:00:46]} a5 {[%emt 0:20:21] D76: Fianchetto Grünfeld: Main Line with 7...Nb6} 11. d5 {[%emt 0:01:08]} Nb4 {[%emt 0:04:14]} 12. e4 {[%emt 0:00:30]} c6 {[%emt 0:02:11]} 13. a3 {[%emt 0:01:28] LiveBook: 19 Games} Na6 {[%emt 0:01:26]} 14. dxc6 {[%emt 0:00:27]} bxc6 {[%emt 0:06:15]} 15. Qc2 {[%emt 0:02:22]} Qc7 {[%emt 0:04:06]} 16. Rd1 {[%emt 0:18:17]} h6 $146 {[%emt 0:06:43]} ({Predecessor:} 16... e5 17. b3 Nc5 18. Be3 {1-0 (58) Mchedlishvili,M (2645)-Babujian,L (2488) Mumbai 2013}) 17. Rb1 {[%emt 0:14:09]} Rb8 {[%emt 0:11:22]} 18. b3 {[%emt 0:02:50]} e5 {[%emt 0:04:38]} 19. Be3 {[%emt 0:04:15]} Be6 {[%emt 0:04:00]} 20. Nd2 {[%emt 0:17:51]} Qc8 {[%emt 0:09:27]} 21. Kh2 {[%emt 0:01:08]} Bf8 {[%emt 0:01:23]} 22. Ra1 {[%emt 0:18:03]} Nc5 {[%emt 0:01:32]} 23. f4 {[%emt 0:00:48]} exf4 {[%emt 0:01:49]} 24. Bxf4 {[%emt 0:02:22]} Rb7 {[%emt 0:01:11]} 25. e5 {[%emt 0:01:57]} (25. Rab1 $15) 25... Bf5 {[%emt 0:01:42]} 26. Nde4 {[%emt 0:01:36]} Nxe4 {[%emt 0:01:25]} 27. Nxe4 {[%emt 0:01:32]} Nd5 {[%emt 0:01:26]} 28. Qc4 {[%emt 0:06:29]} Qe6 {[%emt 0:01:16]} 29. Rxd5 {[%emt 0:01:04]} cxd5 {[%emt 0:00:09]} 30. Nf6+ {[%emt 0:00:39]} Qxf6 {[%emt 0:00:03]} 31. Qxd5 {[%emt 0:00:30]} Qe7 {[%emt 0:03:18]} 32. Qxb7 {[%emt 0:00:04]} Qxb7 {[%emt 0:01:50]} 33. Bxb7 {[%emt 0:00:02]} Be6 {[%emt 0:00:39]} 34. b4 {[%emt 0:02:46]} Rb8 {[%emt 0:02:13]} 35. Bg2 {[%emt 0:00:13]} axb4 {[%emt 0:00:08]} 36. axb4 {[%emt 0:00:06]} Rxb4 {[%emt 0:00:56]} 37. h4 {[%emt 0:01:30]} Kg7 {[%emt 0:01:05]} 38. Re1 {[%emt 0:01:01]} Be7 {[%emt 0:02:06]} 39. Bc1 {[%emt 0:00:55]} Rc4 {[%emt 0:00:46]} 40. Be3 {[%emt 0:00:00]} Bb4 $11 {[%emt 0:00:00]} 41. Rc1 {[%emt 0:05:25]} Rxc1 {[%emt 0:04:31]} 42. Bxc1 {[%emt 0:00:25]} Bc3 {[%emt 0:01:11]} 43. Bf4 {[%emt 0:00:05]} h5 {[%emt 0:06:05]} 44. Bc6 {[%emt 0:00:15]} f6 {[%emt 0:00:55]} 1/2-1/2

[Event "WYCC 2018 O16"]
[Site "Halkidiki"]
[Date "2018.10.24"]
[Round "6"]
[White "Beukes, Dante M"]
[Black "Shubin, Kirill"]
[Result "0-1"]
[ECO "C02"]
[WhiteElo "2155"]
[BlackElo "2369"]
[Annotator "NA"]
[PlyCount "96"]
[EventDate "2018.10.20"]
[EventType "swiss"]
[EventCountry "GRE"]
[SourceTitle "playchess.com"]
[Source "ChessBase"]
[SourceQuality "1"]
[TimeControl "40/5400+30:1800+30"]

1. e4 {[%emt 0:00:00]} e6 {[%emt 0:00:00]} 2. d4 {[%emt 0:00:00]} d5 {[%emt 0:00:00]} 3. e5 {[%emt 0:00:00]} c5 {[%emt 0:00:00]} 4. c3 {[%emt 0:00:00]} Ne7 {[%emt 0:00:00]} 5. Nf3 {[%emt 0:00:00]} Nec6 {[%emt 0:00:00]} 6. Bd3 {[%emt 0:00:02]} Nd7 {[%emt 0:00:00] LiveBook: 53 Games} 7. O-O {[%emt 0:00:27]} Be7 {[%emt 0:00:24] C02: French: Advance Variation} 8. Re1 {[%emt 0:00:06]} (8. a3 a5 9. a4 O-O 10. Na3 cxd4 11. cxd4 Nb4 12. Bb1 b6 13. Nb5 Ba6 14. Re1 Re8 15. Ra3 Nf8 16. Rc3 {1-0 (69) Idani,P (2576)-Mosadeghpour,M (2444) Teheran 2017}) 8... a6 {[%emt 0:01:56]} 9. Be3 {[%emt 0:00:15]} b5 $146 {[%emt 0:00:40]} ({Predecessor:} 9... c4 10. Bc2 b5 11. Nbd2 Nb6 12. Nf1 b4 13. Qd2 bxc3 14. bxc3 Na5 15. Bg5 {1-0 (35) Krueger,N (2015)-Bock,J (2200) Goch 1995}) 10. Nbd2 {[%emt 0:00:10]} b4 {[%emt 0:03:39]} 11. Nf1 {[%emt 0:03:07]} bxc3 {[%emt 0:12:20]} 12. bxc3 {[%emt 0:00:23]} cxd4 {[%emt 0:00:10]} 13. cxd4 {[%emt 0:00:37]} Nb6 {[%emt 0:00:49]} 14. N3d2 {[%emt 0:05:06]} Nb4 {[%emt 0:02:32]} 15. Bb1 {[%emt 0:04:58]} Bd7 {[%emt 0:06:56]} 16. Qg4 {[%emt 0:05:11]} g6 {[%emt 0:05:04]} 17. Bh6 {[%emt 0:05:07]} Bf8 {[%emt 0:02:31]} 18. Qh3 {[%emt 0:03:33]} Qe7 {[%emt 0:01:16]} 19. Nf3 {[%emt 0:05:37]} Bxh6 {[%emt 0:01:10]} 20. Qxh6 {[%emt 0:00:07]} Qf8 {[%emt 0:00:19]} 21. Qf4 {[%emt 0:08:55]} Bb5 {[%emt 0:01:19]} 22. Ne3 {[%emt 0:10:11]} h5 {[%emt 0:00:34]} 23. Ng5 {[%emt 0:00:18]} Qe7 {[%emt 0:01:01]} 24. Rc1 {[%emt 0:11:30]} Nc4 {[%emt 0:09:36]} 25. a3 {[%emt 0:08:21]} Nxe3 {[%emt 0:01:39]} 26. Qxe3 {[%emt 0:01:13]} Nc6 {[%emt 0:00:20]} 27. a4 {[%emt 0:01:51]} Bc4 {[%emt 0:00:09]} 28. Ne4 {[%emt 0:00:23]} Kf8 {[%emt 0:00:47]} 29. Nf6 {[%emt 0:01:41]} Kg7 {[%emt 0:03:27]} 30. Be4 {[%emt 0:07:52]} Rac8 {[%emt 0:02:23]} 31. Bf3 {[%emt 0:00:33]} Qa7 {[%emt 0:02:26]} 32. Rd1 {[%emt 0:02:23]} Rb8 {[%emt 0:00:21]} 33. Rac1 {[%emt 0:05:24]} Rb4 {[%emt 0:00:52]} 34. Qg5 {[%emt 0:02:36]} Qe7 {[%emt 0:05:49]} 35. Bxh5 {[%emt 0:01:25]} Rxa4 {[%emt 0:00:14]} 36. h4 $18 {[%emt 0:02:19]} Bb5 {[%emt 0:01:51]} 37. Be2 {[%emt 0:02:53]} Bxe2 {[%emt 0:12:22]} 38. Rxc6 {[%emt 0:00:18]} Qb7 {[%emt 0:00:43]} 39. Rdc1 {[%emt 0:00:51]} Ra1 {[%emt 0:00:12]} 40. Nh5+ {[%emt 0:00:00]} Rxh5 {[%emt 0:00:00]} 41. Qf6+ {[%emt 0:03:53]} Kg8 {[%emt 0:02:06]} 42. Qd8+ {[%emt 0:04:16]} Kh7 {[%emt 0:00:04]} 43. Rxa1 {[%emt 0:01:54]} Qxc6 {[%emt 0:00:08]} 44. g4 {[%emt 0:00:13]} Bxg4 {[%emt 0:01:08]} 45. Rb1 {[%emt 0:00:13]} Be2 {[%emt 0:00:42]} 46. Rb8 {[%emt 0:00:40]} Qc1+ {[%emt 0:00:03]} 47. Kh2 {[%emt 0:01:17]} Qf4+ {[%emt 0:00:04]} 48. Kh3 {[%emt 0:00:06]} Qg4+ {[%emt 0:00:04]} 0-1

[Event "WYCC 2018 O16"]
[Site "Halkidiki"]
[Date "2018.10.24"]
[Round "6"]
[White "Lou, Vincent"]
[Black "Koustav Chatterjee"]
[Result "0-1"]
[ECO "E95"]
[WhiteElo "2155"]
[BlackElo "2344"]
[Annotator "NA"]
[PlyCount "106"]
[EventDate "2018.10.20"]
[EventType "swiss"]
[EventCountry "GRE"]
[SourceTitle "playchess.com"]
[Source "ChessBase"]
[SourceQuality "1"]
[TimeControl "40/5400+30:1800+30"]

1. d4 {[%emt 0:00:00]} Nf6 {[%emt 0:00:00]} 2. c4 {[%emt 0:00:00]} g6 {[%emt 0:00:00]} 3. Nc3 {[%emt 0:00:00]} Bg7 {[%emt 0:00:00]} 4. e4 {[%emt 0:00:00]} d6 {[%emt 0:00:00]} 5. Nf3 {[%emt 0:00:00]} O-O {[%emt 0:00:00]} 6. Be2 {[%emt 0:00:03] LiveBook: 39590 Games} e5 {[%emt 0:00:15]} 7. O-O {[%emt 0:00:08]} Nbd7 {[%emt 0:00:08]} 8. Re1 {[%emt 0:06:07]} c6 {[%emt 0:01:57]} 9. Bf1 {[%emt 0:10:06]} Qc7 {[%emt 0:01:14]} 10. Qc2 {[%emt 0:01:58] E95: Königsindisch (Klassisches System)} (10. d5 c5 11. g3 Ne8 12. Bh3 Nb6 13. Bf1 Qd8 14. a3 Bg4 15. h3 Bxf3 16. Qxf3 f5 17. b4 Rc8 18. Qd1 {½-½ (46) Sanikidze,T (2497)-Mannhart,M (2096) Batumi 2018}) 10... Re8 {[%emt 0:02:09]} 11. d5 {[%emt 0:04:37]} a5 {[%emt 0:01:55]} 12. Rb1 {[%emt 0:02:12]} Nc5 {[%emt 0:00:42]} 13. Nd2 $146 {[%emt 0:07:22]} ({Vorgänger:} 13. Be3 Ng4 14. Bxc5 dxc5 15. dxc6 bxc6 16. Na4 Bf8 17. Nd2 Rb8 18. b3 Nf6 {0-1 (38) Mista,L (2275)-Reznicek,T (2325) Czechia 2001}) 13... Bd7 {[%emt 0:04:18]} 14. b3 {[%emt 0:04:31]} Reb8 {[%emt 0:03:59]} 15. a3 {[%emt 0:02:24]} cxd5 {[%emt 0:05:14]} 16. Nxd5 {[%emt 0:03:40]} Nxd5 {[%emt 0:00:20]} 17. cxd5 {[%emt 0:00:10]} Rc8 {[%emt 0:08:24]} 18. b4 {[%emt 0:04:00]} axb4 {[%emt 0:03:38]} 19. axb4 {[%emt 0:00:05]} Na4 {[%emt 0:01:02]} 20. Qxc7 {[%emt 0:04:39]} Rxc7 {[%emt 0:01:07]} 21. Nc4 {[%emt 0:10:29]} Bf8 {[%emt 0:10:10]} 22. Ra1 {[%emt 0:07:12]} Rac8 {[%emt 0:07:25]} 23. Na5 {[%emt 0:03:06]} Nc3 {[%emt 0:04:17]} 24. Be3 {[%emt 0:07:34]} Ra8 {[%emt 0:10:12]} 25. Rac1 {[%emt 0:06:36]} Rcc8 {[%emt 0:01:20]} 26. Bd2 {[%emt 0:02:20]} Nb5 {[%emt 0:03:44]} 27. Nxb7 {[%emt 0:01:06]} Nd4 $16 {[%emt 0:00:12]} (27... Rxc1 $14 28. Rxc1 Ra2) 28. Rxc8 {[%emt 0:02:05]} Rxc8 {[%emt 0:00:09]} 29. Rc1 $2 {[%emt 0:00:29]} (29. Na5 $16 {stays on course.}) 29... Nb3 {[%emt 0:01:31]} 30. Rxc8 {[%emt 0:11:22]} Bxc8 {[%emt 0:00:07]} 31. Nxd6 {[%emt 0:00:21]} Bxd6 {[%emt 0:00:15]} 32. Bc3 {[%emt 0:00:29]} Nd4 {[%emt 0:01:13]} 33. Bd3 {[%emt 0:00:44]} Bd7 {[%emt 0:00:16]} 34. f3 {[%emt 0:00:30]} Kf8 {[%emt 0:01:16]} 35. Kf2 {[%emt 0:00:06]} Ke7 {[%emt 0:00:10]} 36. g3 {[%emt 0:00:46]} Kd8 {[%emt 0:00:28]} 37. f4 {[%emt 0:00:35]} f6 {[%emt 0:00:06]} 38. Ke3 {[%emt 0:00:32]} Nb5 {[%emt 0:00:06]} 39. Bd2 {[%emt 0:00:35]} Kc7 {[%emt 0:00:12]} 40. h4 {[%emt 0:00:00]} Kb6 {[%emt 0:00:00]} 41. Be1 {[%emt 0:09:16]} Na3 {[%emt 0:03:02]} 42. Bc3 {[%emt 0:06:17]} Bb5 {[%emt 0:01:11]} 43. Ba1 {[%emt 0:01:53]} Bxd3 {[%emt 0:03:02]} 44. Kxd3 {[%emt 0:00:06]} Kb5 {[%emt 0:00:01]} 45. Bc3 {[%emt 0:00:48]} Nc4 {[%emt 0:00:12]} 46. fxe5 {[%emt 0:01:17]} Nxe5+ {[%emt 0:02:13]} 47. Ke3 {[%emt 0:00:27]} Bxb4 {[%emt 0:00:04]} 48. Bxb4 {[%emt 0:02:19]} Kxb4 {[%emt 0:00:05]} 49. Kf4 {[%emt 0:00:09]} h5 {[%emt 0:00:38]} 50. d6 {[%emt 0:00:53]} Kc5 {[%emt 0:00:04]} 51. d7 {[%emt 0:00:08]} Nxd7 {[%emt 0:00:02]} 52. g4 {[%emt 0:00:05]} hxg4 {[%emt 0:00:03]} 53. Kxg4 {[%emt 0:00:06]} Ne5+ {[%emt 0:00:02]} 0-1

[Event "WYCC 2018 O16"]
[Site "Halkidiki"]
[Date "2018.10.24"]
[Round "6"]
[White "Vatsal Singhania"]
[Black "Sahidi, Samir"]
[Result "0-1"]
[ECO "E06"]
[WhiteElo "2128"]
[BlackElo "2315"]
[Annotator "NA"]
[PlyCount "206"]
[EventDate "2018.10.20"]
[EventType "swiss"]
[EventCountry "GRE"]
[SourceTitle "playchess.com"]
[Source "ChessBase"]
[SourceQuality "1"]
[TimeControl "40/5400+30:1800+30"]

1. d4 {[%emt 0:00:00]} Nf6 {[%emt 0:00:16]} 2. c4 {[%emt 0:00:00]} e6 {[%emt 0:02:08]} 3. g3 {[%emt 0:00:00]} d5 {[%emt 0:00:21]} 4. Bg2 {[%emt 0:00:00]} Be7 {[%emt 0:01:03]} 5. Nf3 {[%emt 0:00:04]} O-O {[%emt 0:01:50]} 6. O-O {[%emt 0:00:04]} dxc4 {[%emt 0:05:00]} 7. Qc2 {[%emt 0:00:07]} a6 {[%emt 0:01:07]} 8. a4 {[%emt 0:00:18]} Nc6 {[%emt 0:01:43] LiveBook: 199 Games} 9. Qxc4 {[%emt 0:02:06]} Nb4 {[%emt 0:02:19]} 10. a5 {[%emt 0:06:40] E05: Open Catalan: 5 Nf3 Be7} (10. Bf4 Nfd5 11. Nc3 c6 12. a5 b5 13. Qb3 c5 14. dxc5 Bxc5 15. Rfd1 Qe7 16. Ne4 Nxf4 17. gxf4 Nd5 18. Nxc5 Qxc5 {1-0 (39) Xu,X (2549)-Colijn,S (2308) Hoogeveen 2017}) 10... Bd7 {[%emt 0:09:19]} 11. Na3 $146 {[%emt 0:13:07]} ({Predecessor:} 11. Nc3 Bc6 12. Bg5 Ne4 13. Bxe7 Qxe7 14. Rfc1 Rac8 15. Qb3 Rb8 16. Ne5 Nxc3 17. bxc3 Bxg2 18. Qxb4 {1-0 (55) Campos Jimenez,A (2390)-Pazos Gambarrotti,P (2217) Santa Clara 2018}) 11... Bc6 {[%emt 0:02:42]} 12. Bd2 {[%emt 0:00:36]} Bd5 {[%emt 0:00:35]} 13. Qc1 {[%emt 0:00:29]} Ne4 {[%emt 0:04:28]} 14. Bf4 {[%emt 0:07:41]} Rc8 {[%emt 0:02:19]} 15. Nc4 {[%emt 0:01:47]} Nd6 {[%emt 0:05:10]} 16. Ne3 {[%emt 0:09:59]} Be4 {[%emt 0:01:52]} 17. Qd2 {[%emt 0:04:43]} Nd5 {[%emt 0:01:23]} 18. Nxd5 {[%emt 0:01:29]} exd5 {[%emt 0:00:37]} 19. Bh3 {[%emt 0:04:48]} Bf5 {[%emt 0:06:21]} 20. Bxf5 {[%emt 0:00:48]} Nxf5 {[%emt 0:00:05]} 21. Qd3 {[%emt 0:00:07]} Qd7 {[%emt 0:04:41]} 22. Rfc1 {[%emt 0:01:16]} c6 {[%emt 0:02:35]} 23. Rc3 {[%emt 0:07:55]} Rfe8 {[%emt 0:03:48]} 24. Rb3 {[%emt 0:02:12]} Nd6 {[%emt 0:01:09]} 25. Bxd6 {[%emt 0:03:50]} Bxd6 {[%emt 0:00:13]} 26. e3 {[%emt 0:02:27]} Re7 {[%emt 0:05:45]} 27. Nd2 {[%emt 0:04:43]} Qe6 {[%emt 0:02:37]} 28. Rb6 {[%emt 0:02:31]} h5 {[%emt 0:03:29]} 29. Nb3 {[%emt 0:03:02]} Rce8 {[%emt 0:09:08]} 30. Nc5 {[%emt 0:00:55]} Qc8 {[%emt 0:00:42]} 31. Qd1 {[%emt 0:11:31]} h4 {[%emt 0:03:18]} 32. Qh5 {[%emt 0:01:11]} Bxc5 {[%emt 0:01:38]} 33. dxc5 {[%emt 0:01:29]} Re4 {[%emt 0:00:43]} 34. Rb3 {[%emt 0:04:34]} R8e5 {[%emt 0:02:22]} 35. Qf3 {[%emt 0:01:11]} Rc4 {[%emt 0:01:11]} 36. Rc3 {[%emt 0:00:17]} Rb4 {[%emt 0:00:21]} 37. b3 {[%emt 0:00:48]} Qd8 {[%emt 0:01:19]} 38. Rd3 {[%emt 0:00:28]} Qe7 {[%emt 0:02:30]} 39. Rc1 {[%emt 0:02:04]} Ree4 {[%emt 0:01:57]} 40. Qf5 {[%emt 0:00:00]} g6 {[%emt 0:00:00]} 41. Qf3 {[%emt 0:03:59]} Kg7 {[%emt 0:01:57]} 42. Qe2 {[%emt 0:02:52]} Rb5 {[%emt 0:01:17]} 43. Qb2+ {[%emt 0:02:16]} Qf6 {[%emt 0:00:12]} 44. Qxf6+ {[%emt 0:00:26]} Kxf6 {[%emt 0:00:05]} 45. f3 {[%emt 0:01:13]} Reb4 {[%emt 0:00:14]} 46. e4 {[%emt 0:01:09]} dxe4 {[%emt 0:01:24]} 47. fxe4 {[%emt 0:00:04]} Rxe4 {[%emt 0:00:58]} 48. Rd7 {[%emt 0:00:30]} hxg3 {[%emt 0:02:12]} 49. Rf1+ {[%emt 0:02:09]} Kg5 {[%emt 0:02:53]} 50. Rfxf7 {[%emt 0:00:06]} gxh2+ {[%emt 0:01:25]} 51. Kxh2 {[%emt 0:00:11]} Rxa5 {[%emt 0:08:16]} 52. Rxb7 {[%emt 0:00:47]} Rxc5 {[%emt 0:00:25]} 53. Rf2 {[%emt 0:00:41]} Rh4+ {[%emt 0:01:08]} 54. Kg2 {[%emt 0:01:19]} Rg4+ {[%emt 0:01:42]} 55. Kh2 {[%emt 0:00:22]} Rb5 {[%emt 0:03:40]} 56. Rxb5+ {[%emt 0:00:27]} cxb5 {[%emt 0:00:22]} 57. Rf3 {[%emt 0:00:59]} Rb4 {[%emt 0:00:32]} 58. Kg3 {[%emt 0:00:13]} a5 {[%emt 0:00:05]} 59. Rc3 {[%emt 0:00:08]} a4 {[%emt 0:00:24]} 60. bxa4 {[%emt 0:00:07]} bxa4 {[%emt 0:00:05]} 61. Rc5+ {[%emt 0:00:04]} Kh6 {[%emt 0:00:18]} 62. Ra5 {[%emt 0:00:09]} g5 {[%emt 0:01:01]} 63. Ra8 {[%emt 0:00:08]} g4 {[%emt 0:00:40]} 64. Ra5 {[%emt 0:03:56]} Kg6 {[%emt 0:00:10]} 65. Kf2 {[%emt 0:00:21]} Kf6 {[%emt 0:00:26]} 66. Ke2 {[%emt 0:00:09]} Re4+ {[%emt 0:02:09]} 67. Kd3 {[%emt 0:01:18]} Re5 {[%emt 0:02:09]} 68. Rxa4 {[%emt 0:00:29]} Kg5 {[%emt 0:00:05]} 69. Kd4 {[%emt 0:01:25]} Re7 {[%emt 0:00:24]} 70. Ra8 {[%emt 0:00:09]} Kh4 {[%emt 0:00:11]} 71. Rh8+ {[%emt 0:00:09]} Kg3 {[%emt 0:00:05]} 72. Rg8 {[%emt 0:00:04]} Kh3 {[%emt 0:00:05]} 73. Rh8+ {[%emt 0:00:04]} Kg2 {[%emt 0:00:05]} 74. Kd3 {[%emt 0:00:12]} g3 {[%emt 0:00:06]} 75. Rg8 {[%emt 0:00:57]} Kf2 {[%emt 0:00:08]} 76. Rf8+ {[%emt 0:00:02]} Kg1 {[%emt 0:00:07]} 77. Rg8 {[%emt 0:00:06]} g2 {[%emt 0:00:05]} 78. Rh8 {[%emt 0:00:09]} Re5 {[%emt 0:00:14]} 79. Kd4 {[%emt 0:00:06]} Re2 {[%emt 0:00:24]} 80. Kd3 {[%emt 0:00:43]} Kf1 {[%emt 0:00:25]} 81. Rg8 {[%emt 0:00:29]} Rf2 {[%emt 0:01:20]} 82. Ra8 {[%emt 0:00:08]} g1=Q {[%emt 0:00:08]} 83. Ra1+ {[%emt 0:00:03]} Kg2 {[%emt 0:00:07]} 84. Rxg1+ {[%emt 0:00:02]} Kxg1 {[%emt 0:00:12]} 85. Ke3 {[%emt 0:00:04]} Kg2 {[%emt 0:00:11]} 86. Ke4 {[%emt 0:00:02]} Rf3 {[%emt 0:00:10]} 87. Ke5 {[%emt 0:00:06]} Kg3 {[%emt 0:00:11]} 88. Kd4 {[%emt 0:00:03]} Kf4 {[%emt 0:00:10]} 89. Kd5 {[%emt 0:00:03]} Re3 {[%emt 0:00:08]} 90. Kd4 {[%emt 0:00:04]} Kf3 {[%emt 0:00:37]} 91. Kd5 {[%emt 0:00:05]} Re4 {[%emt 0:00:04]} 92. Kc5 {[%emt 0:00:04]} Ke3 {[%emt 0:00:12]} 93. Kd5 {[%emt 0:00:03]} Kd3 {[%emt 0:00:14]} 94. Kd6 {[%emt 0:00:07]} Kc4 {[%emt 0:00:08]} 95. Kc6 {[%emt 0:00:05]} Re6+ {[%emt 0:00:04]} 96. Kd7 {[%emt 0:00:04]} Kd5 {[%emt 0:00:04]} 97. Kc7 {[%emt 0:00:03]} Rd6 {[%emt 0:00:12]} 98. Kb7 {[%emt 0:00:03]} Rc6 {[%emt 0:00:07]} 99. Ka7 {[%emt 0:00:03]} Kd6 {[%emt 0:00:13]} 100. Kb8 {[%emt 0:00:04]} Rb6+ {[%emt 0:00:11]} 101. Ka8 {[%emt 0:00:05]} Kc7 {[%emt 0:00:11]} 102. Ka7 {[%emt 0:00:02]} Rc6 {[%emt 0:00:07]} 103. Ka8 {[%emt 0:00:02]} Ra6# 0-1

[Event "WYCC 2018 O16"]
[Site "Halkidiki"]
[Date "2018.10.24"]
[Round "6"]
[White "Fainman, Tomer"]
[Black "Morgunov, Daniel"]
[Result "0-1"]
[ECO "E71"]
[WhiteElo "2054"]
[BlackElo "2328"]
[Annotator "ChessBase"]
[PlyCount "138"]
[EventDate "2018.10.20"]
[EventType "swiss"]
[EventCountry "GRE"]
[SourceTitle "playchess.com"]
[Source "ChessBase"]
[SourceQuality "1"]
[TimeControl "40/5400+30:1800+30"]

1. d4 {[%emt 0:00:00]} Nf6 {[%emt 0:00:00]} 2. c4 {[%emt 0:00:00]} g6 {[%emt 0:00:00]} 3. Nc3 {[%emt 0:00:00]} Bg7 {[%emt 0:00:00]} 4. e4 {[%emt 0:00:00]} d6 {[%emt 0:00:00]} 5. h3 {[%emt 0:00:00]} O-O {[%emt 0:00:00]} 6. Nf3 {[%emt 0:00:00]} Na6 {[%emt 0:00:01]} 7. Be3 {[%emt 0:04:25]} e5 {[%emt 0:00:11]} 8. d5 {[%emt 0:03:10]} Nh5 {[%emt 0:02:10]} 9. Nd2 Qe8 {[%emt 0:08:23]} 10. Be2 {[%emt 0:30:45]} Nf4 {[%emt 0:10:43]} 11. O-O {[%emt 0:17:27]} f5 {[%emt 0:00:30]} 12. Bxf4 {[%emt 0:00:22]} exf4 {[%emt 0:01:45]} 13. Bf3 {[%emt 0:04:49]} Nc5 {[%emt 0:13:08]} 14. Qe2 Qf7 15. Nb3 {[%emt 0:10:20]} fxe4 {[%emt 0:13:30]} 16. Nxe4 {[%emt 0:01:35]} Nxe4 {[%emt 0:01:34]} 17. Bxe4 {[%emt 0:02:40]} Re8 {[%emt 0:03:14]} 18. f3 {[%emt 0:05:30]} Qf6 {[%emt 0:04:15]} 19. Rab1 {[%emt 0:02:08]} Re5 {[%emt 0:06:03]} 20. Nc1 {[%emt 0:04:57]} Rh5 {[%emt 0:13:32]} 21. Rd1 {[%emt 0:11:40]} Bd7 {[%emt 0:09:07]} 22. Nd3 {[%emt 0:00:13]} Qg5 {[%emt 0:01:14]} 23. Kf1 {[%emt 0:00:28]} Ba4 {[%emt 0:03:22]} 24. b3 {[%emt 0:00:27]} Bd7 {[%emt 0:00:29]} 25. Nf2 {[%emt 0:00:10]} Re8 {[%emt 0:02:36]} 26. Ng4 {[%emt 0:00:57]} Qe7 {[%emt 0:01:03]} 27. Qd3 {[%emt 0:00:35]} Bxg4 {[%emt 0:02:10]} 28. fxg4 {[%emt 0:00:48]} Re5 {[%emt 0:00:12]} 29. Bf3 {[%emt 0:00:16]} Qh4 {[%emt 0:00:30]} 30. Qd2 {[%emt 0:00:26]} Re3 {[%emt 0:00:55]} 31. Qf2 {[%emt 0:00:33]} Qe7 {[%emt 0:00:51]} 32. h4 {[%emt 0:00:26]} g5 {[%emt 0:01:27]} 33. h5 {[%emt 0:00:14]} Bc3 {[%emt 0:01:06]} 34. Kg1 {[%emt 0:00:46]} Qe5 {[%emt 0:00:49]} 35. Kh2 {[%emt 0:00:49]} Be1 {[%emt 0:00:51]} 36. Qc2 {[%emt 0:00:27]} Bg3+ {[%emt 0:00:08]} 37. Kh3 {[%emt 0:00:19]} Qg7 {[%emt 0:01:54]} 38. Rd2 {[%emt 0:00:45]} R8e5 {[%emt 0:00:40]} 39. Rdd1 {[%emt 0:00:24]} Re7 {[%emt 0:00:31]} 40. Qf5 {[%emt 0:00:00]} R7e5 {[%emt 0:00:00]} 41. Qc2 {[%emt 0:08:33]} Re8 {[%emt 0:07:56]} 42. Rf1 {[%emt 0:01:53]} Rc3 {[%emt 0:02:25]} 43. Qf5 {[%emt 0:00:53]} Qe5 {[%emt 0:00:27]} 44. Qd7 {[%emt 0:02:38]} Qe7 {[%emt 0:05:55]} 45. Qa4 {[%emt 0:06:05]} a6 {[%emt 0:02:52]} 46. Qb4 {[%emt 0:02:10]} Rc2 {[%emt 0:00:53]} 47. Qxb7 {[%emt 0:01:26]} Qe3 {[%emt 0:01:03]} 48. Qc6 {[%emt 0:03:10]} Re7 {[%emt 0:00:36]} 49. Qa8+ {[%emt 0:00:34]} Re8 {[%emt 0:00:24]} 50. Qc6 {[%emt 0:00:06]} Rf8 {[%emt 0:01:51]} 51. Rbd1 {[%emt 0:03:39]} Qc3 {[%emt 0:02:40]} 52. Qd7 {[%emt 0:00:50]} Rxa2 {[%emt 0:02:17]} 53. Be4 {[%emt 0:02:59]} Qg7 {[%emt 0:00:11]} 54. Qe6+ {[%emt 0:00:34]} Qf7 {[%emt 0:00:10]} 55. Qh6 {[%emt 0:00:27]} Qe7 {[%emt 0:01:16]} 56. Bf5 {[%emt 0:00:44]} Kh8 {[%emt 0:00:54]} 57. Rd3 {[%emt 0:02:23]} Rf7 {[%emt 0:01:33]} 58. Be6 {[%emt 0:00:32]} Rf6 {[%emt 0:00:38]} 59. Qxg5 {[%emt 0:00:30]} Rxe6 {[%emt 0:00:07]} 60. Qxe7 {[%emt 0:00:31]} Rxe7 {[%emt 0:00:03]} 61. h6 {[%emt 0:00:28]} Kg8 {[%emt 0:01:17]} 62. g5 {[%emt 0:00:25]} Ree2 {[%emt 0:00:27]} 63. Kg4 {[%emt 0:00:29]} Rxg2 {[%emt 0:01:52]} 64. Kf5 {[%emt 0:00:32]} Rae2 {[%emt 0:00:50]} 65. c5 {[%emt 0:00:35]} Re5+ {[%emt 0:01:02]} 66. Kg4 {[%emt 0:00:21]} Bh2+ {[%emt 0:00:57]} 67. Kh3 {[%emt 0:00:41]} Rexg5 {[%emt 0:00:13]} 68. cxd6 {[%emt 0:00:30]} Bg1 {[%emt 0:00:54]} 69. Kh4 {[%emt 0:00:28]} Rg6 {[%emt 0:00:21]} 0-1